bitfinex-derivatives/quotes_BTCF0:USTF0_20260113
["timestamp","ask_amount","ask_price","bid_price","bid_amount"]
[1768346673923,0.18762077,95536.0,95509.0,0.09660919]
[1768346674119,0.18762077,95536.0,95510.0,0.09300587]
[1768346674425,0.18762077,95536.0,95512.0,0.09300587]
[1768346674628,0.09209108,95536.0,95513.0,0.09660919]
[1768346674825,0.01107654,95543.0,95507.0,0.09424]
[1768346674826,0.09209108,95543.0,95516.0,0.09300587]
[1768346675021,0.18637108,95543.0,95518.0,0.09446906]
[1768346675228,0.0987678,95541.0,95518.0,0.18874906]
[1768346675419,0.0987678,95539.0,95518.0,0.09428]
[1768346675718,0.0987678,95535.0,95501.0,0.09446906]
[1768346675926,0.0987678,95531.0,95506.0,0.8746]
[1768346676219,0.09423647,95530.0,95506.0,0.8746]
[1768346676425,0.0987678,95528.0,95506.0,0.8746]
[1768346676723,0.19300427,95525.0,95507.0,0.09428]
[1768346677109,0.0987678,95524.0,95507.0,0.09428]
[1768346677522,0.0987678,95524.0,95501.0,0.09446906]
[1768346677730,0.0987678,95524.0,95506.0,0.09428]
[1768346677921,0.0987678,95524.0,95501.0,0.09446906]
[1768346678228,0.0987678,95524.0,95506.0,0.09428]
[1768346681223,0.0987678,95524.0,95501.0,0.09446906]
[1768346681423,0.0987678,95524.0,95506.0,0.09428]
[1768346681736,0.0987678,95523.0,95506.0,0.09428]
[1768346683837,0.19300427,95520.0,95501.0,0.09428]
[1768346686037,0.19300427,95516.0,95499.0,0.012]
[1768346686229,0.19300427,95509.0,95500.0,0.09428]
[1768346686536,0.19300427,95509.0,95499.0,0.012]
[1768346687030,0.0987678,95509.0,95499.0,0.012]
[1768346687335,0.09423647,95513.0,95499.0,0.012]
[1768346688036,0.19300427,95513.0,95499.0,0.012]
[1768346688222,0.0987678,95510.0,95499.0,0.012]
[1768346688535,0.0987678,95510.0,95494.0,0.09428]
[1768346689634,0.19300427,95508.0,95493.0,0.00523599]
[1768346689838,0.19300427,95507.0,95493.0,0.00523599]
[1768346690038,0.19300427,95512.0,95493.0,0.00523599]
[1768346690227,0.010473,95520.0,95493.0,0.00523599]
[1768346690228,0.19300427,95511.0,95493.0,0.00523599]
[1768346691634,0.0987678,95517.0,95495.0,0.09199311]
[1768346691831,0.28728427,95522.0,95498.0,0.09446906]
[1768346692026,0.19300427,95521.0,95498.0,0.09446906]
[1768346692226,0.09423647,95520.0,95498.0,0.09446906]
[1768346692421,0.09428,95522.0,95499.0,0.09199311]
[1768346692638,0.09428,95522.0,95500.0,0.09446906]
[1768346692931,0.28728427,95525.0,95502.0,0.09446906]
[1768346693127,0.19300427,95522.0,95502.0,0.09446906]
[1768346693328,0.19300427,95520.0,95498.0,0.09428]
[1768346693829,0.19300427,95517.0,95498.0,0.09428]
[1768346694034,0.0987678,95517.0,95498.0,0.18874906]
[1768346694630,0.0987678,95517.0,95499.0,0.09446906]
[1768346695230,0.0987678,95517.0,95498.0,0.09428]
[1768346695935,0.19300427,95517.0,95498.0,0.09428]
[1768346696240,0.0987678,95515.0,95498.0,0.09428]
[1768346696425,0.19300427,95515.0,95498.0,0.09428]
[1768346696624,0.19300427,95513.0,95493.0,0.00523599]
[1768346696840,0.19300427,95512.0,95493.0,0.00523599]
[1768346697139,0.19300427,95507.0,95494.0,0.09428]
[1768346697341,0.09423647,95506.0,95494.0,0.09428]
[1768346697730,0.09423647,95506.0,95493.0,0.00523599]
[1768346698036,0.09423647,95506.0,95494.0,0.09428]
[1768346699236,0.19300427,95506.0,95493.0,0.00523599]
[1768346699445,0.19300427,95506.0,95495.0,0.09428]
[1768346699625,0.0987678,95506.0,95495.0,0.09428]
[1768346701242,0.19300427,95505.0,95495.0,0.09428]
[1768346701536,0.0987678,95505.0,95493.0,0.09951599]
[1768346701844,0.0987678,95517.0,95495.0,0.09446906]
[1768346702042,0.19300427,95522.0,95497.0,0.09446906]
[1768346702231,0.19300427,95514.0,95493.0,0.09951599]
[1768346702542,0.09423647,95512.0,95493.0,0.09951599]
[1768346703332,0.0987678,95521.0,95496.0,0.09446906]
[1768346703537,0.19300427,95518.0,95496.0,0.09446906]
[1768346703739,0.19300427,95516.0,95496.0,0.09446906]
[1768346703936,0.09423647,95514.0,95493.0,0.09951599]
[1768346704132,0.09423647,95514.0,95493.0,0.19398505]
[1768346704346,0.19300427,95514.0,95493.0,0.19398505]
[1768346704640,0.010473,95521.0,95493.0,0.19398505]
[1768346704641,0.19300427,95513.0,95493.0,0.19398505]
[1768346705930,0.19321811,95512.0,95493.0,0.00523599]
[1768346706242,0.19321811,95512.0,95446.0,0.0997378]
[1768346706243,0.09475066,95480.0,95446.0,0.0997378]
[1768346706539,0.09846745,95474.0,95449.0,0.092364]
[1768346706838,0.19321811,95467.0,95445.0,0.1020428]
[1768346707341,0.09846745,95465.0,95445.0,0.002305]
[1768346707533,8.486e-05,95466.0,95445.0,0.002305]
[1768346707732,8.486e-05,95466.0,95448.0,0.0997378]
[1768346708136,0.09428,95467.0,95448.0,0.0997378]
[1768346708741,0.19321811,95471.0,95448.0,0.0997378]
[1768346709043,0.09432,95470.0,95448.0,0.0997378]
[1768346709540,0.28753811,95470.0,95453.0,0.01718818]
[1768346709731,0.09475066,95469.0,95453.0,0.01718818]
[1768346710534,0.18907066,95469.0,95453.0,0.01718818]
[1768346711341,0.09475066,95469.0,95453.0,0.01718818]
[1768346711534,0.18907066,95469.0,95453.0,0.01718818]
[1768346712030,0.09475066,95467.0,95453.0,0.01718818]
[1768346712238,0.19321811,95467.0,95453.0,0.01718818]
[1768346713242,0.09475066,95467.0,95453.0,0.01718818]
[1768346714032,0.09475066,95465.0,95453.0,0.01718818]
[1768346715045,0.09432,95469.0,95453.0,0.01718818]
[1768346715946,0.09432,95476.0,95461.0,0.0997378]
[1768346716143,0.010477,95482.0,95461.0,0.0997378]
[1768346716349,0.19321811,95480.0,95460.0,0.16616792]
[1768346716545,0.19321811,95478.0,95457.0,0.0997378]
[1768346716745,0.19321811,95476.0,95460.0,0.16616792]
[1768346716937,0.09475066,95476.0,95460.0,0.16616792]
[1768346717138,0.0939861,95480.0,95460.0,0.16616792]
[1768346717749,0.18437612,95480.0,95460.0,0.16616792]
[1768346717936,0.18437612,95475.0,95453.0,0.01718818]
[1768346718136,0.010476,95488.0,95453.0,0.01718818]
[1768346718137,0.09039002,95488.0,95466.0,0.09526494]
[1768346718336,0.09432,95487.0,95466.0,0.09526494]
[1768346718544,0.18437612,95484.0,95470.0,0.16616792]
[1768346718744,0.18437612,95484.0,95463.0,0.09526494]
[1768346718948,0.10530125,95487.0,95464.0,0.09084414]
[1768346718949,0.28967737,95487.0,95464.0,0.09084414]
[1768346719242,0.18437612,95485.0,95464.0,0.09084414]
[1768346719436,0.18437612,95485.0,95470.0,0.16616792]
[1768346719638,0.09039002,95484.0,95463.0,0.09526494]
[1768346719842,0.0939861,95483.0,95470.0,0.16616792]
[1768346720040,0.18437612,95476.0,95463.0,0.09526494]
[1768346720240,0.18437612,95476.0,95453.0,0.01718818]
[1768346720241,0.09039002,95470.0,95453.0,0.01718818]
[1768346720445,0.09039002,95470.0,95460.0,0.16616792]
[1768346720748,0.18437612,95470.0,95460.0,0.16616792]
[1768346720948,0.18437612,95470.0,95453.0,0.01718818]
[1768346721244,0.09432,95476.0,95453.0,0.10803232]
[1768346721245,0.18471002,95476.0,95453.0,0.10803232]
[1768346721442,0.01098125,95487.0,95453.0,0.10803232]
[1768346721443,0.0939861,95480.0,95460.0,0.1661235]
[1768346721649,0.09432,95479.0,95460.0,0.1661235]
[1768346721841,0.09432,95479.0,95453.0,0.10803232]
[1768346722243,0.09432,95479.0,95454.0,0.09526494]
[1768346722548,0.09432,95479.0,95456.0,0.09526494]
[1768346722741,0.09432,95479.0,95458.0,0.09526494]
[1768346722950,0.09432,95479.0,95459.0,0.09084414]
[1768346723144,0.09432,95479.0,95460.0,0.09084414]
[1768346723737,0.1883061,95479.0,95460.0,0.09084414]
[1768346723938,0.0939861,95476.0,95454.0,0.09084414]
[1768346724148,0.0939861,95475.0,95453.0,0.01718818]
[1768346724348,0.0939861,95475.0,95453.0,0.01713818]
[1768346725048,0.0939861,95475.0,95454.0,0.18610908]
[1768346725349,0.0939861,95471.0,95453.0,0.01713818]
[1768346726550,0.18437612,95470.0,95453.0,0.01713818]
[1768346727542,0.0939861,95467.0,95453.0,0.01713818]
[1768346727742,0.0939861,95473.0,95453.0,0.01713818]
[1768346728145,0.0939861,95472.0,95453.0,0.01713818]
[1768346728344,0.0939861,95471.0,95453.0,0.01713818]
[1768346729145,0.09432,95478.0,95432.0,0.18516414]
[1768346729146,0.18437612,95465.0,95432.0,0.18516414]
[1768346729345,0.0939861,95465.0,95442.0,0.18610908]
[1768346729551,0.0939861,95465.0,95443.0,0.09084414]
[1768346729947,0.0939861,95464.0,95443.0,0.09084414]
[1768346730353,0.0939861,95464.0,95443.0,0.18610908]
[1768346731142,0.09039002,95463.0,95431.0,0.09526494]
[1768346731349,0.09039002,95461.0,95434.0,0.09432]
[1768346731545,0.09432,95467.0,95434.0,0.09432]
[1768346731546,0.09039002,95459.0,95434.0,0.09432]
[1768346731761,0.0939861,95458.0,95434.0,0.09432]
[1768346731960,0.09039002,95457.0,95434.0,0.09432]
[1768346732151,0.09039002,95455.0,95434.0,0.09432]
[1768346732345,0.0939861,95454.0,95434.0,0.09432]
[1768346732658,0.0939861,95452.0,95434.0,0.09432]
[1768346732861,0.0939861,95450.0,95434.0,0.09432]
[1768346733050,0.18437612,95449.0,95429.0,0.012]
[1768346733252,0.0939861,95448.0,95429.0,0.012]
[1768346733763,0.09039002,95449.0,95429.0,0.012]
[1768346734550,0.18475002,95453.0,95431.0,0.09084414]
[1768346734749,0.27873612,95453.0,95431.0,0.09084414]
[1768346734949,0.0939861,95452.0,95431.0,0.09084414]
[1768346735764,0.09171421,95451.0,95431.0,0.09084414]
[1768346736564,0.09374717,95450.0,95429.0,0.012]
[1768346736758,0.09171421,95449.0,95429.0,0.012]
[1768346736961,0.09171421,95447.0,95429.0,0.012]
[1768346737853,0.09436,95453.0,95435.0,0.09931292]
[1768346738163,0.18546138,95450.0,95429.0,0.11131292]
[1768346738366,0.09171421,95449.0,95429.0,0.11131292]
[1768346739265,0.09171421,95447.0,95429.0,0.012]
[1768346741854,0.09171421,95446.0,95429.0,0.012]
[1768346742257,0.09171421,95445.0,95429.0,0.012]
[1768346742658,0.09171421,95439.0,95417.0,0.09931292]
[1768346742859,0.18546138,95434.0,95414.0,0.09436]
[1768346743059,0.09171421,95433.0,95414.0,0.09436]
[1768346743353,0.18546138,95432.0,95414.0,0.09436]
[1768346743668,0.18546138,95431.0,95414.0,0.09436]
[1768346743869,0.09171421,95430.0,95414.0,0.09436]
[1768346745170,0.09374717,95427.0,95414.0,0.09436]
[1768346747069,0.18546138,95427.0,95414.0,0.09436]
[1768346747874,0.09171421,95426.0,95413.0,0.00524038]
[1768346748369,0.09171421,95432.0,95413.0,0.00524038]
[1768346748574,0.18546138,95429.0,95413.0,0.00524038]
[1768346748872,0.09171421,95426.0,95413.0,0.00524038]
[1768346749261,0.18546138,95426.0,95413.0,0.00524038]
[1768346749462,0.09171421,95421.0,95407.0,0.09436]
[1768346749662,0.010483,95427.0,95406.0,0.012]
[1768346749663,0.09171421,95419.0,95406.0,0.012]
[1768346749969,0.00012693,95418.0,95407.0,0.09436]
[1768346750365,0.00012693,95418.0,95408.0,0.16631426]
[1768346750764,0.00012693,95418.0,95407.0,0.09436]
[1768346751770,0.00012693,95418.0,95408.0,0.16631426]
[1768346752174,0.00012693,95418.0,95407.0,0.09436]
[1768346752365,0.00012693,95418.0,95408.0,0.16631426]
[1768346754578,0.00012693,95418.0,95398.0,0.1984609]
[1768346754770,0.00012693,95418.0,95402.0,0.1984609]
[1768346755074,0.00012693,95418.0,95408.0,0.16631426]
[1768346755272,0.00012693,95418.0,95402.0,0.1984609]
[1768346755476,0.00012693,95418.0,95403.0,0.1984609]
[1768346755674,0.18546138,95425.0,95403.0,0.1984609]
[1768346756076,0.09171421,95424.0,95403.0,0.1984609]
[1768346756277,0.0834286,95430.0,95410.0,0.16631426]
[1768346756477,0.09171421,95429.0,95410.0,0.16631426]
[1768346756686,0.09171421,95426.0,95410.0,0.16631426]
[1768346756983,0.09374717,95424.0,95407.0,0.09436]
[1768346757288,0.09171421,95423.0,95407.0,0.09436]
[1768346758183,0.09171421,95421.0,95400.0,0.16631426]
[1768346758381,0.09171421,95416.0,95396.0,0.09931292]
[1768346758581,0.09171421,95416.0,95397.0,0.09436]
[1768346759281,0.25802847,95420.0,95398.0,0.09914798]
[1768346759586,0.09374717,95423.0,95402.0,0.09914798]
[1768346760677,0.09171421,95425.0,95403.0,0.1984609]
[1768346761475,0.09374717,95429.0,95397.0,0.09436]
[1768346761476,0.18546138,95429.0,95407.0,0.09914798]
[1768346761678,0.0944,95435.0,95419.0,0.16631426]
[1768346761875,0.09171421,95439.0,95420.0,0.16631426]
[1768346762676,0.102647,95439.0,95420.0,0.16631426]
[1768346763393,0.09171421,95438.0,95420.0,0.16631426]
[1768346763586,0.09171421,95437.0,95420.0,0.16631426]
[1768346764184,0.09171421,95436.0,95416.0,0.09931292]
[1768346764386,0.09171421,95436.0,95420.0,0.16631426]
[1768346765685,0.01093279,95439.0,95420.0,0.16631426]
[1768346765990,0.09822727,95439.0,95420.0,0.16631426]
[1768346766287,0.0944,95440.0,95420.0,0.16631426]
[1768346766486,0.19262727,95451.0,95430.0,0.16631426]
[1768346766793,0.01099417,95449.0,95430.0,0.16631426]
[1768346766990,0.01099417,95449.0,95430.0,0.26071426]
[1768346767589,0.09822727,95451.0,95430.0,0.44578794]
[1768346768391,0.09822727,95451.0,95431.0,0.18507368]
[1768346768990,0.09822727,95451.0,95440.0,0.16631426]
[1768346769196,0.09743984,95452.0,95440.0,0.16631426]
[1768346769782,0.19566711,95457.0,95432.0,0.18507368]
[1768346769986,0.09822727,95455.0,95430.0,0.0944]
[1768346770185,0.09743984,95454.0,95431.0,0.18507368]
[1768346770386,0.09743984,95454.0,95432.0,0.27947368]
[1768346771392,0.09743984,95453.0,95432.0,0.27947368]
[1768346772702,0.09743984,95451.0,95432.0,0.0944]
[1768346773290,0.19566711,95448.0,95421.0,0.27947368]
[1768346773487,0.09743984,95438.0,95421.0,0.0944]
[1768346773693,0.19566711,95428.0,95416.0,0.09436]
[1768346773910,0.09743984,95427.0,95416.0,0.09436]
[1768346774311,0.09822727,95428.0,95416.0,0.09436]
[1768346774512,0.09743984,95432.0,95416.0,0.09436]
[1768346775814,0.09743984,95432.0,95420.0,0.16630299]
[1768346776315,0.09743984,95432.0,95416.0,0.09436]
[1768346776711,0.09743984,95432.0,95416.0,0.0944]
[1768346777812,0.09822727,95434.0,95416.0,0.0944]
[1768346780418,0.09394975,95440.0,95417.0,0.18644964]
[1768346780624,0.09394975,95445.0,95419.0,0.09461713]
[1768346780913,0.0944,95449.0,95419.0,0.09461713]
[1768346780914,0.09394975,95443.0,95419.0,0.09461713]
[1768346781114,0.09394975,95442.0,95419.0,0.09461713]
[1768346781318,0.18562526,95441.0,95419.0,0.09461713]
[1768346781502,0.09394975,95440.0,95418.0,0.09183251]
[1768346781701,0.09394975,95439.0,95418.0,0.09183251]
[1768346782121,0.09394975,95438.0,95418.0,0.09183251]
[1768346782618,0.09394975,95436.0,95416.0,0.0944]
[1768346783707,0.09394975,95435.0,95416.0,0.0944]
[1768346783908,0.09394975,95434.0,95416.0,0.0944]
[1768346784516,0.09394975,95427.0,95413.0,0.0944]
[1768346784819,0.09394975,95427.0,95411.0,0.0944]
[1768346785312,0.09394975,95427.0,95406.0,0.09183251]
[1768346785521,0.09394975,95433.0,95411.0,0.09461713]
[1768346785707,0.09394975,95433.0,95412.0,0.09461713]
[1768346786024,0.0944,95438.0,95420.0,0.09461713]
[1768346786212,0.0944,95445.0,95422.0,0.09461713]
[1768346786525,0.010481,95447.0,95426.0,0.09461713]
[1768346786711,0.010481,95445.0,95426.0,0.18644964]
[1768346787109,0.010481,95445.0,95429.0,0.18644964]
[1768346787313,0.010481,95448.0,95429.0,0.18644964]
[1768346787908,0.104881,95449.0,95429.0,0.18644964]
[1768346789210,0.010481,95447.0,95429.0,0.09183251]
[1768346790115,0.010481,95445.0,95429.0,0.09183251]
[1768346790516,0.010481,95448.0,95429.0,0.09183251]
[1768346790718,0.09394975,95447.0,95425.0,0.09461713]
[1768346790915,0.09394975,95446.0,95425.0,0.09461713]
[1768346791208,0.010482,95439.0,95425.0,0.0944]
[1768346791626,0.010482,95435.0,95423.0,0.0944]
[1768346791814,0.09394975,95436.0,95423.0,0.0944]
[1768346792425,0.010482,95437.0,95421.0,0.0944]
[1768346792622,0.010482,95435.0,95421.0,0.0944]
[1768346793119,0.09394975,95440.0,95421.0,0.0944]
[1768346793321,0.010482,95433.0,95421.0,0.0944]
[1768346793522,0.09394975,95440.0,95421.0,0.0944]
[1768346794118,0.09394975,95444.0,95423.0,0.18644964]
[1768346794317,0.09167551,95445.0,95424.0,0.18644964]
[1768346794517,0.010482,95439.0,95424.0,0.09183251]
[1768346794720,0.010482,95437.0,95424.0,0.09183251]
[1768346795726,0.010482,95440.0,95424.0,0.09183251]
[1768346795923,0.09394845,95449.0,95429.0,0.18933487]
[1768346796127,0.0944,95451.0,95432.0,0.0939012]
[1768346796325,0.09173192,95447.0,95420.0,0.18933487]
[1768346796625,0.10442945,95448.0,95420.0,0.0939012]
[1768346796626,0.010482,95437.0,95420.0,0.0939012]
[1768346796814,0.09394845,95446.0,95422.0,0.18933487]
[1768346797018,0.09394845,95446.0,95423.0,0.18933487]
[1768346797225,0.010482,95439.0,95423.0,0.18933487]
[1768346797432,0.010481,95442.0,95425.0,0.18933487]
[1768346797620,0.010481,95442.0,95427.0,0.18933487]
[1768346797826,0.010481,95440.0,95427.0,0.18933487]
[1768346798131,0.010482,95438.0,95427.0,0.0939012]
[1768346799129,0.010483,95429.0,95415.0,0.00230573]
[1768346799930,0.010482,95432.0,95415.0,0.00230573]
[1768346800429,0.09394845,95433.0,95415.0,0.00230573]
[1768346800722,0.18613192,95435.0,95415.0,0.00230573]
[1768346800929,0.0944,95435.0,95418.0,0.18933487]
[1768346802724,0.0944,95435.0,95419.0,0.0939012]
[1768346803128,0.0944,95435.0,95420.0,0.18933487]
[1768346803623,0.0944,95435.0,95421.0,0.0939012]
[1768346804026,0.0944,95435.0,95423.0,0.0939012]
[1768346804230,0.0944,95435.0,95424.0,0.18933487]
[1768346804529,0.010481,95441.0,95424.0,0.18933487]
[1768346805232,0.0944,95443.0,95424.0,0.18933487]
[1768346805428,0.0944,95443.0,95426.0,0.09543367]
[1768346805733,0.0944,95443.0,95428.0,0.09543367]
[1768346806029,0.0944,95443.0,95429.0,0.18933487]
[1768346806237,0.0944,95443.0,95430.0,0.18933487]
[1768346806729,0.05046993,95452.0,95439.0,0.18933487]
[1768346807644,0.05046993,95452.0,95439.0,0.0939012]
[1768346807936,0.0944,95454.0,95439.0,0.0939012]
[1768346810029,0.0944,95454.0,95439.0,0.18933487]
[1768346810228,0.0944,95470.0,95450.0,0.0939012]
[1768346810630,0.0944,95470.0,95450.0,0.18933487]
[1768346811029,0.10523807,95470.0,95450.0,0.18933487]
[1768346811532,0.10523807,95470.0,95451.0,0.0939012]
[1768346811728,0.0944,95480.0,95454.0,0.09543367]
[1768346811928,0.0944,95480.0,95461.0,0.0939012]
[1768346812135,0.09394845,95479.0,95456.0,0.09436]
[1768346812435,0.09394845,95477.0,95457.0,0.09436]
[1768346812829,0.09394845,95477.0,95435.0,0.04080597]
[1768346812830,0.09173192,95473.0,95453.0,0.09436]
[1768346813029,0.09394845,95470.0,95443.0,0.0939012]
[1768346813227,0.09394845,95468.0,95444.0,0.09436]
[1768346813427,0.09173192,95469.0,95447.0,0.0939012]
[1768346813633,0.09394845,95468.0,95447.0,0.0939012]
[1768346814030,0.09918553,95473.0,95448.0,0.18933487]
[1768346814243,0.00523708,95473.0,95453.0,0.18933487]
[1768346814433,0.00523708,95473.0,95455.0,0.0939012]
[1768346815438,0.00523708,95473.0,95456.0,0.0939012]
[1768346815643,0.09918553,95473.0,95450.0,0.0939012]
[1768346816541,0.09918553,95473.0,95444.0,0.09436]
[1768346816542,0.00523708,95473.0,95453.0,0.18933487]
[1768346816732,0.09918553,95473.0,95453.0,0.0939012]
[1768346816928,0.00523708,95473.0,95454.0,0.09543367]
[1768346818937,0.00523708,95473.0,95454.0,0.18933487]
[1768346819331,0.00523708,95473.0,95455.0,0.18933487]
[1768346820741,0.09394845,95470.0,95451.0,0.09436]
[1768346821246,0.09173192,95471.0,95452.0,0.0939012]
[1768346822046,0.00523708,95473.0,95453.0,0.18933487]
[1768346822542,0.00523708,95473.0,95450.0,0.09436]
[1768346822543,0.00523708,95473.0,95455.0,0.18933487]
[1768346822734,0.00523708,95473.0,95457.0,0.18933487]
[1768346823042,0.01098792,95479.0,95450.0,0.09436]
[1768346823341,0.0944,95480.0,95467.0,0.0939012]
[1768346823548,0.10529134,95480.0,95467.0,0.0939012]
[1768346824142,0.10529134,95480.0,95468.0,0.0939012]
[1768346824344,0.052328,95588.0,95471.0,0.09543367]
[1768346824345,0.09436,95487.0,95471.0,0.09543367]
[1768346824539,0.09394845,95473.0,95459.0,0.09436]
[1768346824843,0.09394845,95471.0,95453.0,0.09436]
[1768346825144,0.09468872,95466.0,95438.0,0.09161965]
[1768346825345,0.010478,95468.0,95438.0,0.09161965]
[1768346825346,0.09468872,95464.0,95438.0,0.09161965]
[1768346825546,0.09468872,95462.0,95439.0,0.09436]
[1768346825750,0.09943139,95460.0,95439.0,0.09436]
[1768346826346,0.09943139,95460.0,95438.0,0.18597965]
[1768346826736,0.09468872,95458.0,95431.0,0.09161965]
[1768346826940,0.09436,95463.0,95419.0,0.09436]
[1768346826941,0.09468872,95448.0,95419.0,0.09436]
[1768346827134,0.09943139,95445.0,95421.0,0.09161965]
[1768346827333,0.09943139,95445.0,95421.0,0.18784836]
[1768346827544,0.09468872,95446.0,95423.0,0.09161965]
[1768346829251,0.09436,95447.0,95427.0,0.09161965]
[1768346830853,0.09943139,95442.0,95416.0,0.09436]
[1768346831056,0.09943139,95440.0,95415.0,0.09666573]
[1768346831356,0.09943139,95439.0,95415.0,0.09666573]
[1768346831541,0.09943139,95439.0,95415.0,0.18828538]
[1768346831743,0.09468872,95445.0,95418.0,0.09161965]
[1768346831950,0.09468872,95443.0,95415.0,0.09666573]
[1768346832148,0.09943139,95442.0,95416.0,0.09161965]
[1768346833254,0.09943139,95441.0,95416.0,0.09161965]
[1768346833959,0.09943139,95441.0,95418.0,0.09161965]
[1768346834757,0.09468872,95442.0,95419.0,0.09161965]
[1768346835255,0.09468872,95442.0,95420.0,0.09161965]
[1768346837853,0.18501847,95442.0,95420.0,0.09161965]
[1768346838160,0.16631542,95440.0,95420.0,0.09161965]
[1768346838557,0.16631542,95440.0,95422.0,0.09067686]
[1768346839260,0.16631542,95440.0,95422.0,0.18751572]
[1768346840863,0.16631542,95440.0,95422.0,0.09067686]
[1768346841263,0.16631542,95440.0,95417.0,0.09683886]
[1768346841558,0.09032975,95446.0,95420.0,0.09067686]
[1768346841863,0.09032975,95446.0,95415.0,0.09666573]
[1768346841864,0.16631542,95440.0,95422.0,0.09067686]
[1768346842262,0.16631542,95440.0,95422.0,0.18751572]
[1768346842559,0.16631542,95440.0,95423.0,0.09067686]
[1768346842763,0.09436,95447.0,95425.0,0.09067686]
[1768346843061,0.09436,95447.0,95427.0,0.09067686]
[1768346843364,0.16631542,95440.0,95427.0,0.09067686]
[1768346843559,0.16631542,95440.0,95421.0,0.09067686]
[1768346843950,0.16631542,95440.0,95421.0,0.18751572]
[1768346844155,0.16631542,95440.0,95422.0,0.09067686]
[1768346844456,0.08588709,95457.0,95425.0,0.18751572]
[1768346844457,0.09861646,95455.0,95425.0,0.18751572]
[1768346844662,0.16631542,95440.0,95425.0,0.09067686]
[1768346844861,0.09032975,95447.0,95425.0,0.09067686]
[1768346845363,0.16631542,95440.0,95420.0,0.18503686]
[1768346845559,0.09032975,95444.0,95422.0,0.09683886]
[1768346845863,0.16631542,95440.0,95423.0,0.09067686]
[1768346847250,0.09032975,95444.0,95423.0,0.09067686]
[1768346847662,0.16631542,95440.0,95423.0,0.09067686]
[1768346848164,0.09032975,95444.0,95423.0,0.09067686]
[1768346848366,0.16631542,95440.0,95423.0,0.18751572]
[1768346849368,0.09436,95446.0,95425.0,0.09067686]
[1768346849558,0.09436,95446.0,95426.0,0.09683886]
[1768346849758,0.09436,95446.0,95427.0,0.09067686]
[1768346851064,0.18468975,95446.0,95427.0,0.09067686]
[1768346851364,0.0944,95458.0,95444.0,0.18751572]
[1768346852472,0.0944,95458.0,95449.0,0.09067686]
[1768346853665,0.0944,95466.0,95449.0,0.09067686]
[1768346853867,0.0944,95466.0,95450.0,0.16631542]
[1768346854182,0.0944,95479.0,95452.0,0.18751572]
[1768346854365,0.0944,95479.0,95455.0,0.09067686]
[1768346854574,0.0944,95479.0,95460.0,0.16631542]
[1768346854772,0.09032975,95476.0,95456.0,0.09067686]
[1768346854975,0.25912738,95470.0,95449.0,0.0967684]
[1768346855168,0.09915296,95473.0,95450.0,0.0967684]
[1768346855481,0.09915296,95473.0,95451.0,0.09257016]
[1768346856573,0.09915296,95473.0,95452.0,0.0967684]
[1768346857474,0.19196492,95473.0,95452.0,0.0967684]
[1768346857676,0.02682238,95474.0,95453.0,0.0967684]
[1768346858179,0.02682238,95474.0,95454.0,0.0967684]
[1768346858870,0.02697954,95474.0,95460.0,0.16631542]
[1768346859170,0.02697954,95474.0,95459.0,0.0967684]
[1768346859372,0.02697954,95474.0,95461.0,0.18933856]
[1768346859872,0.02697954,95474.0,95461.0,0.0967684]
[1768346861574,0.02697954,95474.0,95457.0,0.09257016]
[1768346861775,0.02697954,95474.0,95460.0,0.16631542]
[1768346862288,0.02697954,95474.0,95457.0,0.09257016]
[1768346863183,0.02697954,95474.0,95455.0,0.0967684]
[1768346863778,0.02697954,95474.0,95456.0,0.0967684]
[1768346864370,0.02697954,95474.0,95457.0,0.18933856]
[1768346865582,0.02697954,95474.0,95459.0,0.0967684]
[1768346866384,0.02697954,95474.0,95454.0,0.09257016]
[1768346866588,0.02697954,95474.0,95455.0,0.0967684]
[1768346866786,0.02697954,95474.0,95454.0,0.09257016]
[1768346866787,0.02697954,95474.0,95456.0,0.18933856]
[1768346870093,0.02697954,95474.0,95458.0,0.18933856]
[1768346870592,0.02697954,95474.0,95458.0,0.0967684]
[1768346870983,0.02697954,95474.0,95434.0,0.04234787]
[1768346870984,0.09281196,95467.0,95439.0,0.18933856]
[1768346871187,0.16631542,95460.0,95441.0,0.18933856]
[1768346871389,0.09281196,95465.0,95442.0,0.18933856]
[1768346871589,0.09281196,95465.0,95440.0,0.16631542]
[1768346871590,0.09436,95467.0,95449.0,0.18933856]
[1768346871787,0.09436,95467.0,95450.0,0.35565398]
[1768346872090,0.09436,95467.0,95457.0,0.26308382]
[1768346872285,0.09436,95467.0,95457.0,0.0967684]
[1768346872685,0.09436,95477.0,95459.0,0.18933856]
[1768346874988,0.1197915,95474.0,95453.0,0.0967684]
[1768346875181,0.09281196,95473.0,95453.0,0.0967684]
[1768346875590,0.1261325,95474.0,95453.0,0.18933856]
[1768346876590,0.02697954,95474.0,95455.0,0.18933856]
[1768346876779,0.02697954,95474.0,95456.0,0.18933856]
[1768346878388,0.02697954,95474.0,95455.0,0.18933856]
[1768346878587,0.16631542,95470.0,95455.0,0.18933856]
[1768346880484,0.16631542,95470.0,95455.0,0.0967684]
[1768346880795,0.09281196,95469.0,95447.0,0.09436]
[1768346881192,0.09281196,95469.0,95448.0,0.18933856]
[1768346881392,0.09281196,95469.0,95449.0,0.18933856]
[1768346881891,0.09281196,95469.0,95450.0,0.0967684]
[1768346882396,0.09915296,95457.0,95434.0,0.18933856]
[1768346882583,0.25912738,95450.0,95426.0,0.18933856]
[1768346882784,0.18717196,95449.0,95428.0,0.0967684]
[1768346882984,0.16631542,95440.0,95423.0,0.09257016]
[1768346883192,0.09436,95449.0,95425.0,0.09257016]
[1768346883388,0.09436,95449.0,95426.0,0.0967684]
[1768346883588,0.09436,95449.0,95427.0,0.09257016]
[1768346883897,0.09436,95449.0,95428.0,0.0967684]
[1768346884097,0.09436,95449.0,95429.0,0.0967684]
[1768346884297,0.09436,95449.0,95429.0,0.18933856]
[1768346884798,0.09436,95449.0,95430.0,0.0967684]
[1768346886701,0.09588699,95447.0,95424.0,0.18907212]
[1768346887197,0.09436,95449.0,95427.0,0.09473182]
[1768346887399,0.09436,95449.0,95429.0,0.09473182]
[1768346887784,0.09436,95449.0,95431.0,0.09473182]
[1768346889799,0.09436,95449.0,95432.0,0.18907212]
[1768346890001,0.09436,95449.0,95435.0,0.18907212]
[1768346890205,0.16631542,95460.0,95440.0,0.0943403]
[1768346890398,0.09436,95459.0,95444.0,0.09473182]
[1768346890600,0.16631542,95470.0,95446.0,0.09473182]
[1768346890601,0.09436,95458.0,95446.0,0.09473182]
[1768346890797,0.09436,95457.0,95446.0,0.09473182]
[1768346890988,0.09588699,95467.0,95446.0,0.09473182]
[1768346891194,0.09436,95466.0,95448.0,0.18907212]
[1768346891390,0.09436,95466.0,95449.0,0.09473182]
[1768346891591,0.09436,95466.0,95449.0,0.18907212]